Workbook

Sheet Dashboard
Z1: 3
Z2: 3
H3: Vineyard Irrigation Budgeting Tool | O3: Operations
F7: Allocated | G7: Unallocated | J7: Season: | L7: =Budget!C4 -> 2020-21
B8: Display Units: | C8: mm | F8: =Budget!$H$25 -> 10.74714182 | G8: =Budget!$H$26 -> 49.25285818 | J8: Property Name: | L8: =Budget!C5 -> AWRI Vineyard
C9: ML/ha | J9: Location: | L9: =Budget!C6 -> Riverland
B11: Disclaimer / Copyright
F12: Jul | G12: Aug | H12: Sep | I12: Oct | J12: Nov | K12: Dec | L12: Jan | M12: Feb | N12: Mar | O12: Apr | P12: May | Q12: Jun
D13: LTA Rainfall (mm): | F13: =Budget!I14 -> 24.1483871 | G13: =Budget!J14 -> 23.66129032 | H13: =Budget!K14 -> 28.41612903 | I13: =Budget!L14 -> 21.71290323 | J13: =Budget!M14 -> 23.53870968 | K13: =Budget!N14 -> 23.88709677 | L13: =Budget!O14 -> 19.340625 | M13: =Budget!P14 -> 19.47173184 | N13: =Budget!Q14 -> 12.17741935 | O13: =Budget!R14 -> 17.96451613 | P13: =Budget!S14 -> 21.71612903 | Q13: =Budget!T14 -> 24.16451613
D14: Expected Rainfall (mm): | F14: 35 | G14: 33 | H14: 9 | I14: 77 | J14: 44 | K14: 55 | L14: 66 | M14: 4 | N14: 22 | Q14: 99
D15: Actual Rainfall (mm): | F15: 20 | G15: 17 | H15: 2 | I15: 55 | J15: 6 | K15: 9 | L15: 68 | M15: 65 | N15: 7 | O15: 33 | P15: 7 | Q15: 7
R16: Annual
B17: Block Name | D17: Area (Ha) | E17: Target Yield | F17: Jul | G17: Aug | H17: Sep | I17: Oct | J17: Nov | K17: Dec | L17: Jan | M17: Feb | N17: Mar | O17: Apr | P17: May | Q17: Jun | R17: Allocation
B18: =Budget!$B$20 -> SHI RWT | D18: =Budget!$F$20 -> 3 | E18: =Budget!$G$20 -> 1 | F18: =Budget!$I$20 -> 0 | G18: =Budget!$J$20 -> 0 | H18: =Budget!$K$20 -> 0 | I18: =Budget!$L$20 -> 0 | J18: =Budget!$M$20 -> 0.1409304435 | K18: =Budget!$N$20 -> 1.910121532 | L18: =Budget!$O$20 -> 0.5776464844 | M18: =Budget!$P$20 -> 0.2797549944 | N18: =Budget!$Q$20 -> 1.438644798 | O18: =Budget!$R$20 -> 0 | P18: =Budget!$S$20 -> 0 | Q18: =Budget!$T$20 -> 0 | R18: =Budget!$H$20 -> 4.347098253
B19: =Budget!$B$21 -> SHI Bin28 | D19: =Budget!$F$21 -> 1 | E19: =Budget!$G$21 -> 1 | F19: =Budget!$I$21 -> 0 | G19: =Budget!$J$21 -> 0 | H19: =Budget!$K$21 -> 0 | I19: =Budget!$L$21 -> 0 | J19: =Budget!$M$21 -> 0.2351195565 | K19: =Budget!$N$21 -> 1.109928629 | L19: =Budget!$O$21 -> 0.6892480469 | M19: =Budget!$P$21 -> 0.4834184078 | N19: =Budget!$Q$21 -> 0.8163721774 | O19: =Budget!$R$21 -> 0.1002852823 | P19: =Budget!$S$21 -> 0.06590048387 | Q19: =Budget!$T$21 -> 0 | R19: =Budget!$H$21 -> 3.500272584
B20: =Budget!$B$22 -> SHI Red Label | D20: =Budget!$F$22 -> 1.3 | E20: =Budget!$G$22 -> 0.9 | F20: =Budget!$I$22 -> 0 | G20: =Budget!$J$22 -> 0 | H20: =Budget!$K$22 -> 0 | I20: =Budget!$L$22 -> 0 | J20: =Budget!$M$22 -> 0 | K20: =Budget!$N$22 -> 1.038587613 | L20: =Budget!$O$22 -> 0.5731679688 | M20: =Budget!$P$22 -> 0.3654426441 | N20: =Budget!$Q$22 -> 0.8342395645 | O20: =Budget!$R$22 -> 0.03458419355 | P20: =Budget!$S$22 -> 0.05374900323 | Q20: =Budget!$T$22 -> 0 | R20: =Budget!$H$22 -> 2.899770987

Sheet Budget (hidden)
B2: Vineyard Irrigation Budgeting Tool
B4: Season: | C4: 2020-21 | J4: Water available at start of season (ML): | K4: 50 | R4: Irrigation application efficiency: | S4: 0.8
B5: Property Name: | C5: AWRI Vineyard | J5: Additional water purchases or dam inflows (ML): | K5: 10
B6: Geographical Indication: | C6: Riverland | J6: Total water available (ML): | K6: =K4+K5 -> 60 | R6: Soil Type: | S6: Loamy sand
B7: Station Name: | C7: =VLOOKUP(C6,Lists!A24:E92,2,FALSE) -> LOXTON RESEARCH CENTRE | J7: Normal irrigation use (ML): | K7: 75 | R7: Rooting Depth (m): | S7: 1.21
B8: Latitude: | C8: =VLOOKUP(C6,Lists!A24:E92,3,FALSE) -> -34.439 | R8: Soil water holding capacity (RAW) (mm): | S8: =(VLOOKUP(S6,Lists!A110:B116,2,FALSE)*S7) -> 66.55
B9: Longitude | C9: =VLOOKUP(C6,Lists!A24:E92,4,FALSE) -> 140.5978 | J9: Effective rainfall from budburst (mm): | K9: =(IF(K16>0.00001,K16,K15)+IF(L16>0.00001,L16,L15)+IF(L16>0.00001,L16,L15)+IF(M16>0.00001,M16,M15)+IF(N16>0.00001,N16,N15)+IF(O16>0.00001,O16,O15)+IF(P16>0.00001,P16,P15)+IF(Q16>0.00001,Q16,Q15)+IF(R16>0.00001,R16,R15)+IF(S16>0.00001,S16,S15)+IF(T16>0.00001,T16,T15))*0.65 -> 204.1 | R9: Water stored in soil at budburst (mm): | S9: 40
J10: Percent of rainfall that is effective: | K10: =IF(VLOOKUP($C$6,Lists!$A$24:$F$92,6)="Full",0.65,0.85) -> 0.65
J11: Budburst: | K11: September | R11: mm or ML/ha: | S11: ML/ha
I13: Jul | J13: Aug | K13: Sep | L13: Oct | M13: Nov | N13: Dec | O13: Jan | P13: Feb | Q13: Mar | R13: Apr | S13: May | T13: Jun
H14: Long Term Avg Rainfall (mm): | I14: =VLOOKUP(C6,'Monthly rain'!A:M,2,FALSE) -> 24.1483871 | J14: =VLOOKUP(C6,'Monthly rain'!A:M,3,FALSE) -> 23.66129032 | K14: =VLOOKUP(C6,'Monthly rain'!A:M,4,FALSE) -> 28.41612903 | L14: =VLOOKUP(C6,'Monthly rain'!A:M,5,FALSE) -> 21.71290323 | M14: =VLOOKUP(C6,'Monthly rain'!A:M,6,FALSE) -> 23.53870968 | N14: =VLOOKUP(C6,'Monthly rain'!A:M,7,FALSE) -> 23.88709677 | O14: =VLOOKUP(C6,'Monthly rain'!A:M,8,FALSE) -> 19.340625 | P14: =VLOOKUP(C6,'Monthly rain'!A:M,9,FALSE) -> 19.47173184 | Q14: =VLOOKUP(C6,'Monthly rain'!A:M,10,FALSE) -> 12.17741935 | R14: =VLOOKUP(C6,'Monthly rain'!A:M,11,FALSE) -> 17.96451613 | S14: =VLOOKUP(C6,'Monthly rain'!A:M,12,FALSE) -> 21.71612903 | T14: =VLOOKUP(C6,'Monthly rain'!A:M,13,FALSE) -> 24.16451613
H15: Expected Rainfall (mm): | I15: 35 | J15: 33 | K15: 9 | L15: 77 | M15: 44 | N15: 55 | O15: 66 | P15: 4 | Q15: 22 | T15: 99
H16: Actual Rainfall (mm): | I16: 20 | J16: 17 | K16: 2 | L16: 55 | M16: 6 | N16: 9 | O16: 68 | P16: 65 | Q16: 7 | R16: 33 | S16: 7 | T16: 7
H17: Long Term Avg Evapotranspiration (mm): | I17: =VLOOKUP(C6,'Monthly Et Short crop'!A:M,2,FALSE) -> 45.08709677 | J17: =VLOOKUP(C6,'Monthly Et Short crop'!A:M,3,FALSE) -> 65.67096774 | K17: =VLOOKUP(C6,'Monthly Et Short crop'!A:M,4,FALSE) -> 95.85806452 | L17: =VLOOKUP(C6,'Monthly Et Short crop'!A:M,5,FALSE) -> 140.7903226 | M17: =VLOOKUP(C6,'Monthly Et Short crop'!A:M,6,FALSE) -> 165.9516129 | N17: =VLOOKUP(C6,'Monthly Et Short crop'!A:M,7,FALSE) -> 193.1516129 | O17: =VLOOKUP(C6,'Monthly Et Short crop'!A:M,8,FALSE) -> 202.734375 | P17: =VLOOKUP(C6,'Monthly Et Short crop'!A:M,9,FALSE) -> 165.1499441 | Q17: =VLOOKUP(C6,'Monthly Et Short crop'!A:M,10,FALSE) -> 142.5709677 | R17: =VLOOKUP(C6,'Monthly Et Short crop'!A:M,11,FALSE) -> 93.56451613 | S17: =VLOOKUP(C6,'Monthly Et Short crop'!A:M,12,FALSE) -> 58.46451613 | T17: =VLOOKUP(C6,'Monthly Et Short crop'!A:M,13,FALSE) -> 39.80645161 | AA17: ET Vine | AN17: Soil moisture budget
X18: Jul | Y18: Aug | Z18: Sep | AA18: Oct | AB18: Nov | AC18: Dec | AD18: Jan | AE18: Feb | AF18: Mar | AG18: Apr | AH18: May | AI18: Jun | AL18: Jul | AM18: Aug | AN18: Sep | AO18: Oct | AP18: Nov | AQ18: Dec | AR18: Jan | AS18: Feb | AT18: Mar | AU18: Apr | AV18: May | AW18: Jun
B19: Block Name | C19: Variety Class | D19: Maximum soil RAW | E19: Full / Supplementary | F19: Area (Ha) | G19: Target Yield | H19: Annual Requirement (ML)
B20: SHI RWT | C20: Red | D20: 33 | E20: Supplementary | F20: 3 | G20: 1 | H20: =IF($S$11="mm",(SUM(I20:T20)*F20/100),(SUM(I20:T20))) -> 4.347098253 | I20: =(IF($S$11="mm",IF(AL20<0,0,AL20),(IF(AL20<0,0,AL20))*$F20/100))/$S$4 -> 0 | J20: 0 | K20: 0 | L20: 0 | M20: 0.1409304435 | N20: 1.910121532 | O20: 0.5776464844 | P20: 0.2797549944 | Q20: 1.438644798 | R20: 0 | S20: 0 | T20: 0 | X20: =(IF($C20="Red",0.7,1))*(IF($E20="Full",(I$17*'Crop Co-efficient'!B$2*(VLOOKUP($G20,Lists!$A$8:$B$12,2,FALSE))),(I$17*'Crop Co-efficient'!B$3*(VLOOKUP($G20,Lists!$A$8:$B$12,2,FALSE))))) -> 1.578048387 | Y20: =(IF($C20="Red",0.7,1))*(IF($E20="Full",(J$17*'Crop Co-efficient'!C$2*(VLOOKUP($G20,Lists!$A$8:$B$12,2,FALSE))),(J$17*'Crop Co-efficient'!C$3*(VLOOKUP($G20,Lists!$A$8:$B$12,2,FALSE))))) -> 2.298483871 | Z20: =(IF($C20="Red",0.7,1))*(IF($E20="Full",(K$17*'Crop Co-efficient'!D$2*(VLOOKUP($G20,Lists!$A$8:$B$12,2,FALSE))),(K$17*'Crop Co-efficient'!D$3*(VLOOKUP($G20,Lists!$A$8:$B$12,2,FALSE))))) -> 3.355032258 | AA20: =(IF($C20="Red",0.7,1))*(IF($E20="Full",(L$17*'Crop Co-efficient'!E$2*(VLOOKUP($G20,Lists!$A$8:$B$12,2,FALSE))),(L$17*'Crop Co-efficient'!E$3*(VLOOKUP($G20,Lists!$A$8:$B$12,2,FALSE))))) -> 27.59490323 | AB20: =(IF($C20="Red",0.7,1))*(IF($E20="Full",(M$17*'Crop Co-efficient'!F$2*(VLOOKUP($G20,Lists!$A$8:$B$12,2,FALSE))),(M$17*'Crop Co-efficient'!F$3*(VLOOKUP($G20,Lists!$A$8:$B$12,2,FALSE))))) -> 40.65814516 | AC20: =(IF($C20="Red",0.7,1))*(IF($E20="Full",(N$17*'Crop Co-efficient'!G$2*(VLOOKUP($G20,Lists!$A$8:$B$12,2,FALSE))),(N$17*'Crop Co-efficient'!G$3*(VLOOKUP($G20,Lists!$A$8:$B$12,2,FALSE))))) -> 56.78657419 | AD20: =(IF($C20="Red",0.7,1))*(IF($E20="Full",(O$17*'Crop Co-efficient'!H$2*(VLOOKUP($G20,Lists!$A$8:$B$12,2,FALSE))),(O$17*'Crop Co-efficient'!H$3*(VLOOKUP($G20,Lists!$A$8:$B$12,2,FALSE))))) -> 59.60390625 | AE20: =(IF($C20="Red",0.7,1))*(IF($E20="Full",(P$17*'Crop Co-efficient'!I$2*(VLOOKUP($G20,Lists!$A$8:$B$12,2,FALSE))),(P$17*'Crop Co-efficient'!I$3*(VLOOKUP($G20,Lists!$A$8:$B$12,2,FALSE))))) -> 49.71013318 | AF20: =(IF($C20="Red",0.7,1))*(IF($E20="Full",(Q$17*'Crop Co-efficient'!J$2*(VLOOKUP($G20,Lists!$A$8:$B$12,2,FALSE))),(Q$17*'Crop Co-efficient'!J$3*(VLOOKUP($G20,Lists!$A$8:$B$12,2,FALSE))))) -> 42.91386129 | AG20: =(IF($C20="Red",0.7,1))*(IF($E20="Full",(R$17*'Crop Co-efficient'!K$2*(VLOOKUP($G20,Lists!$A$8:$B$12,2,FALSE))),(R$17*'Crop Co-efficient'!K$3*(VLOOKUP($G20,Lists!$A$8:$B$12,2,FALSE))))) -> 9.824274194 | AH20: =(IF($C20="Red",0.7,1))*(IF($E20="Full",(S$17*'Crop Co-efficient'!L$2*(VLOOKUP($G20,Lists!$A$8:$B$12,2,FALSE))),(S$17*'Crop Co-efficient'!L$3*(VLOOKUP($G20,Lists!$A$8:$B$12,2,FALSE))))) -> 9.82203871 | AI20: =(IF($C20="Red",0.7,1))*(IF($E20="Full",(T$17*'Crop Co-efficient'!M$2*(VLOOKUP($G20,Lists!$A$8:$B$12,2,FALSE))),(T$17*'Crop Co-efficient'!M$3*(VLOOKUP($G20,Lists!$A$8:$B$12,2,FALSE))))) -> 1.393225806 | AL20: =IF(X20-(IF(I$16="",I$15,I$16)*$K$10)+(IF(AK20<0,AK20,0))<-$D20,-$D20,X20-(IF(I$16="",I$15,I$16)*$K$10)+(IF(AK20<0,AK20,0))) -> -11.42195161 | AM20: =IF(Y20-(IF(J$16="",J$15,J$16)*$K$10)+(IF(AL20<0,AL20,0)-(IF(K$11="August",S$9,0)))<-$D20,-$D20,Y20-(IF(J$16="",J$15,J$16)*$K$10)+(IF(AL20<0,AL20,0))-(IF(K$11="August",S$9,0))) -> -20.17346774 | AN20: =IF(Z20-(IF(K$16="",K$15,K$16)*$K$10)+(IF(AM20<0,AM20,0)-(IF(K$11="September",S$9,0)))<-$D20,-$D20,Z20-(IF(K$16="",K$15,K$16)*$K$10)+(IF(AM20<0,AM20,0)-(IF(K$11="September",S$9,0)))) -> -33 | AO20: =IF(AA20-(IF(L$16="",L$15,L$16)*$K$10)+(IF(AN20<0,AN20,0))<-$D20,-$D20,AA20-(IF(L$16="",L$15,L$16)*$K$10)+(IF(AN20<0,AN20,0))) -> -33 | AP20: 3.758145161 | AQ20: 50.93657419 | AR20: 15.40390625 | AS20: 7.460133184 | AT20: 38.36386129 | AU20: -11.62572581 | AV20: -6.353687097 | AW20: -9.51046129
B21: SHI Bin28 | C21: Red | D21: 55 | E21: Full | F21: 1 | G21: 1 | H21: =IF($S$11="mm",(SUM(I21:T21)*F21/100),(SUM(I21:T21))) -> 3.500272584 | I21: 0 | J21: 0 | K21: 0 | L21: 0 | M21: 0.2351195565 | N21: 1.109928629 | O21: 0.6892480469 | P21: 0.4834184078 | Q21: 0.8163721774 | R21: 0.1002852823 | S21: 0.06590048387 | T21: 0 | X21: =(IF($C21="Red",0.7,1))*(IF($E21="Full",(I$17*'Crop Co-efficient'!B$2*(VLOOKUP($G21,Lists!$A$8:$B$12,2,FALSE))),(I$17*'Crop Co-efficient'!B$3*(VLOOKUP($G21,Lists!$A$8:$B$12,2,FALSE))))) -> 1.578048387 | Y21: =(IF($C21="Red",0.7,1))*(IF($E21="Full",(J$17*'Crop Co-efficient'!C$2*(VLOOKUP($G21,Lists!$A$8:$B$12,2,FALSE))),(J$17*'Crop Co-efficient'!C$3*(VLOOKUP($G21,Lists!$A$8:$B$12,2,FALSE))))) -> 4.596967742 | Z21: =(IF($C21="Red",0.7,1))*(IF($E21="Full",(K$17*'Crop Co-efficient'!D$2*(VLOOKUP($G21,Lists!$A$8:$B$12,2,FALSE))),(K$17*'Crop Co-efficient'!D$3*(VLOOKUP($G21,Lists!$A$8:$B$12,2,FALSE))))) -> 20.13019355 | AA21: =(IF($C21="Red",0.7,1))*(IF($E21="Full",(L$17*'Crop Co-efficient'!E$2*(VLOOKUP($G21,Lists!$A$8:$B$12,2,FALSE))),(L$17*'Crop Co-efficient'!E$3*(VLOOKUP($G21,Lists!$A$8:$B$12,2,FALSE))))) -> 39.42129032 | AB21: =(IF($C21="Red",0.7,1))*(IF($E21="Full",(M$17*'Crop Co-efficient'!F$2*(VLOOKUP($G21,Lists!$A$8:$B$12,2,FALSE))),(M$17*'Crop Co-efficient'!F$3*(VLOOKUP($G21,Lists!$A$8:$B$12,2,FALSE))))) -> 58.08306452 | AC21: =(IF($C21="Red",0.7,1))*(IF($E21="Full",(N$17*'Crop Co-efficient'!G$2*(VLOOKUP($G21,Lists!$A$8:$B$12,2,FALSE))),(N$17*'Crop Co-efficient'!G$3*(VLOOKUP($G21,Lists!$A$8:$B$12,2,FALSE))))) -> 94.64429032 | AD21: =(IF($C21="Red",0.7,1))*(IF($E21="Full",(O$17*'Crop Co-efficient'!H$2*(VLOOKUP($G21,Lists!$A$8:$B$12,2,FALSE))),(O$17*'Crop Co-efficient'!H$3*(VLOOKUP($G21,Lists!$A$8:$B$12,2,FALSE))))) -> 99.33984375 | AE21: =(IF($C21="Red",0.7,1))*(IF($E21="Full",(P$17*'Crop Co-efficient'!I$2*(VLOOKUP($G21,Lists!$A$8:$B$12,2,FALSE))),(P$17*'Crop Co-efficient'!I$3*(VLOOKUP($G21,Lists!$A$8:$B$12,2,FALSE))))) -> 80.92347263 | AF21: =(IF($C21="Red",0.7,1))*(IF($E21="Full",(Q$17*'Crop Co-efficient'!J$2*(VLOOKUP($G21,Lists!$A$8:$B$12,2,FALSE))),(Q$17*'Crop Co-efficient'!J$3*(VLOOKUP($G21,Lists!$A$8:$B$12,2,FALSE))))) -> 69.85977419 | AG21: =(IF($C21="Red",0.7,1))*(IF($E21="Full",(R$17*'Crop Co-efficient'!K$2*(VLOOKUP($G21,Lists!$A$8:$B$12,2,FALSE))),(R$17*'Crop Co-efficient'!K$3*(VLOOKUP($G21,Lists!$A$8:$B$12,2,FALSE))))) -> 29.47282258 | AH21: =(IF($C21="Red",0.7,1))*(IF($E21="Full",(S$17*'Crop Co-efficient'!L$2*(VLOOKUP($G21,Lists!$A$8:$B$12,2,FALSE))),(S$17*'Crop Co-efficient'!L$3*(VLOOKUP($G21,Lists!$A$8:$B$12,2,FALSE))))) -> 9.82203871 | AI21: =(IF($C21="Red",0.7,1))*(IF($E21="Full",(T$17*'Crop Co-efficient'!M$2*(VLOOKUP($G21,Lists!$A$8:$B$12,2,FALSE))),(T$17*'Crop Co-efficient'!M$3*(VLOOKUP($G21,Lists!$A$8:$B$12,2,FALSE))))) -> 1.393225806 | AL21: =IF(X21-(IF(I$16="",I$15,I$16)*$K$10)+(IF(AK21<0,AK21,0))<-$D21,-$D21,X21-(IF(I$16="",I$15,I$16)*$K$10)+(IF(AK21<0,AK21,0))) -> -11.42195161 | AM21: =IF(Y21-(IF(J$16="",J$15,J$16)*$K$10)+(IF(AL21<0,AL21,0)-(IF(K$11="August",S$9,0)))<-$D21,-$D21,Y21-(IF(J$16="",J$15,J$16)*$K$10)+(IF(AL21<0,AL21,0))-(IF(K$11="August",S$9,0))) -> -17.87498387 | AN21: =IF(Z21-(IF(K$16="",K$15,K$16)*$K$10)+(IF(AM21<0,AM21,0)-(IF(K$11="September",S$9,0)))<-$D21,-$D21,Z21-(IF(K$16="",K$15,K$16)*$K$10)+(IF(AM21<0,AM21,0)-(IF(K$11="September",S$9,0)))) -> -39.04479032 | AO21: -35.3735 | AP21: 18.80956452 | AQ21: 88.79429032 | AR21: 55.13984375 | AS21: 38.67347263 | AT21: 65.30977419 | AU21: 8.022822581 | AV21: 5.27203871 | AW21: -3.156774194
B22: SHI Red Label | C22: Red | D22: 65 | E22: Full | F22: 1.3 | G22: 0.9 | H22: =IF($S$11="mm",(SUM(I22:T22)*F22/100),(SUM(I22:T22))) -> 2.899770987 | I22: 0 | J22: 0 | K22: 0 | L22: 0 | M22: 0 | N22: 1.038587613 | O22: 0.5731679688 | P22: 0.3654426441 | Q22: 0.8342395645 | R22: 0.03458419355 | S22: 0.05374900323 | T22: 0 | X22: =(IF($C22="Red",0.7,1))*(IF($E22="Full",(I$17*'Crop Co-efficient'!B$2*(VLOOKUP($G22,Lists!$A$8:$B$12,2,FALSE))),(I$17*'Crop Co-efficient'!B$3*(VLOOKUP($G22,Lists!$A$8:$B$12,2,FALSE))))) -> 1.26243871 | Y22: =(IF($C22="Red",0.7,1))*(IF($E22="Full",(J$17*'Crop Co-efficient'!C$2*(VLOOKUP($G22,Lists!$A$8:$B$12,2,FALSE))),(J$17*'Crop Co-efficient'!C$3*(VLOOKUP($G22,Lists!$A$8:$B$12,2,FALSE))))) -> 3.677574194 | Z22: =(IF($C22="Red",0.7,1))*(IF($E22="Full",(K$17*'Crop Co-efficient'!D$2*(VLOOKUP($G22,Lists!$A$8:$B$12,2,FALSE))),(K$17*'Crop Co-efficient'!D$3*(VLOOKUP($G22,Lists!$A$8:$B$12,2,FALSE))))) -> 16.10415484 | AA22: =(IF($C22="Red",0.7,1))*(IF($E22="Full",(L$17*'Crop Co-efficient'!E$2*(VLOOKUP($G22,Lists!$A$8:$B$12,2,FALSE))),(L$17*'Crop Co-efficient'!E$3*(VLOOKUP($G22,Lists!$A$8:$B$12,2,FALSE))))) -> 31.53703226 | AB22: =(IF($C22="Red",0.7,1))*(IF($E22="Full",(M$17*'Crop Co-efficient'!F$2*(VLOOKUP($G22,Lists!$A$8:$B$12,2,FALSE))),(M$17*'Crop Co-efficient'!F$3*(VLOOKUP($G22,Lists!$A$8:$B$12,2,FALSE))))) -> 46.46645161 | AC22: =(IF($C22="Red",0.7,1))*(IF($E22="Full",(N$17*'Crop Co-efficient'!G$2*(VLOOKUP($G22,Lists!$A$8:$B$12,2,FALSE))),(N$17*'Crop Co-efficient'!G$3*(VLOOKUP($G22,Lists!$A$8:$B$12,2,FALSE))))) -> 75.71543226 | AD22: =(IF($C22="Red",0.7,1))*(IF($E22="Full",(O$17*'Crop Co-efficient'!H$2*(VLOOKUP($G22,Lists!$A$8:$B$12,2,FALSE))),(O$17*'Crop Co-efficient'!H$3*(VLOOKUP($G22,Lists!$A$8:$B$12,2,FALSE))))) -> 79.471875 | AE22: =(IF($C22="Red",0.7,1))*(IF($E22="Full",(P$17*'Crop Co-efficient'!I$2*(VLOOKUP($G22,Lists!$A$8:$B$12,2,FALSE))),(P$17*'Crop Co-efficient'!I$3*(VLOOKUP($G22,Lists!$A$8:$B$12,2,FALSE))))) -> 64.7387781 | AF22: =(IF($C22="Red",0.7,1))*(IF($E22="Full",(Q$17*'Crop Co-efficient'!J$2*(VLOOKUP($G22,Lists!$A$8:$B$12,2,FALSE))),(Q$17*'Crop Co-efficient'!J$3*(VLOOKUP($G22,Lists!$A$8:$B$12,2,FALSE))))) -> 55.88781935 | AG22: =(IF($C22="Red",0.7,1))*(IF($E22="Full",(R$17*'Crop Co-efficient'!K$2*(VLOOKUP($G22,Lists!$A$8:$B$12,2,FALSE))),(R$17*'Crop Co-efficient'!K$3*(VLOOKUP($G22,Lists!$A$8:$B$12,2,FALSE))))) -> 23.57825806 | AH22: =(IF($C22="Red",0.7,1))*(IF($E22="Full",(S$17*'Crop Co-efficient'!L$2*(VLOOKUP($G22,Lists!$A$8:$B$12,2,FALSE))),(S$17*'Crop Co-efficient'!L$3*(VLOOKUP($G22,Lists!$A$8:$B$12,2,FALSE))))) -> 7.857630968 | AI22: =(IF($C22="Red",0.7,1))*(IF($E22="Full",(T$17*'Crop Co-efficient'!M$2*(VLOOKUP($G22,Lists!$A$8:$B$12,2,FALSE))),(T$17*'Crop Co-efficient'!M$3*(VLOOKUP($G22,Lists!$A$8:$B$12,2,FALSE))))) -> 1.114580645 | AL22: =IF(X22-(IF(I$16="",I$15,I$16)*$K$10)+(IF(AK22<0,AK22,0))<-$D22,-$D22,X22-(IF(I$16="",I$15,I$16)*$K$10)+(IF(AK22<0,AK22,0))) -> -11.73756129 | AM22: =IF(Y22-(IF(J$16="",J$15,J$16)*$K$10)+(IF(AL22<0,AL22,0)-(IF(K$11="August",S$9,0)))<-$D22,-$D22,Y22-(IF(J$16="",J$15,J$16)*$K$10)+(IF(AL22<0,AL22,0))-(IF(K$11="August",S$9,0))) -> -19.1099871 | AN22: =IF(Z22-(IF(K$16="",K$15,K$16)*$K$10)+(IF(AM22<0,AM22,0)-(IF(K$11="September",S$9,0)))<-$D22,-$D22,Z22-(IF(K$16="",K$15,K$16)*$K$10)+(IF(AM22<0,AM22,0)-(IF(K$11="September",S$9,0)))) -> -44.30583226 | AO22: -48.5188 | AP22: -5.952348387 | AQ22: 63.91308387 | AR22: 35.271875 | AS22: 22.4887781 | AT22: 51.33781935 | AU22: 2.128258065 | AV22: 3.307630968 | AW22: -3.435419355
E23: =VLOOKUP($C$6,Lists!$A$24:$F$92,6) -> Full
G25: Total Water Allocated: | H25: =SUM(H20:H24) -> 10.74714182 | I25: =IF($S$11="mm",(SUM(I20:I24)*$F20/100),(SUM(I20:I24))) -> 0 | J25: 0 | K25: 0 | L25: 0 | M25: 0.37605 | N25: 4.058637774 | O25: 1.8400625 | P25: 1.128616046 | Q25: 3.08925654 | R25: 0.1348694758 | S25: 0.1196494871 | T25: 0
G26: Total Water Unallocated: | H26: =(K4+K5)-H25 -> 49.25285818
T28: Copyright

Sheet Edit Vineyard (hidden)
F4: Edit Vineyard
C6: Season: | E6: 2020-21 | H6: Property Name: | J6: AWRI Vineyard
H8: Location: | J8: Riverland
C10: Water available at | H10: Irrigation Application
C11: start of season (ML): | E11: 50 | H11: Efficiency: | J11: 0.8
B13: Additional water purchases | H13: Soil Type: | J13: Loamy sand
C14: or dam inflows (ML): | E14: 10
D15: 1 | H15: Rooting Depth: | J15: 1.21
B16: Normal Irrigation Use (ML): | E16: 75
H17: Water stored in soil
C18: Budburst: | E18: September | H18: at budburst: | J18: 40

Sheet Edit Block (hidden)
B4: Edit Block
B6: Block Name: | D6: SHI Bin28
B8: Variety Class: | D8: Red
B10: Maximum Soil
B11: RAW: | D11: 55
B13: Full / Supplementary: | D13: Full
B15: Area (Ha): | D15: 1
B17: Target Yield: | D17: 1
Z99: 19
Z101: 18

Sheet Add Block (hidden)
B4: Add Block
B6: Block Name:
B8: Variety Class:
B10: Maximum Soil
B11: RAW:
B13: Full / Supplementary:
B15: Area (Ha):
B17: Target Yield:

Sheet Lists (hidden)
A1: Crop Type
A2: Red
A3: White
A7: Target Percentage
A8: 1 | B8: 1
A9: 0.9 | B9: 0.8
A10: 0.75 | B10: 0.65
A11: 0.5 | B11: 0.55
A12: 0.1 | B12: 0.4
A14: Budburst
A15: August
A16: September
A19: mm/ML
A20: mm
A21: ML/ha
A23: Location
A24: Adelaide Hills - Lenswood | B24: LENSWOOD | C24: -34.9482 | D24: 138.8071 | E24: 480.0 m | F24: Supplementary
A25: Adelaide Hills - Stirling | B25: STIRLING POST OFFICE | C25: -35 | D25: 138.7167 | E25: 496.0 m | F25: Supplementary
A26: Adelaide Plains | B26: EDINBURGH RAAF | C26: -34.7111 | D26: 138.6222 | E26: 16.5 m | F26: Full
A27: Albany | B27: ALBANY AIRPORT COMPARISON | C27: -34.9414 | D27: 117.8022 | E27: 68.0 m | F27: Supplementary
A28: Alpine Valleys | B28: MYRTLEFORD POST OFFICE | C28: -36.5667 | D28: 146.7333 | E28: 222.5 m | F28: Supplementary
A29: Barossa Valley | B29: NURIOOTPA PIRSA | C29: -34.4761 | D29: 139.0056 | E29: 275.0 m | F29: Supplementary
A30: Beechworth | B30: BEECHWORTH COMPOSITE | C30: -36.3702 | D30: 146.7132 | E30: 580.0 m | F30: Supplementary
A31: Bendigo | B31: BENDIGO AIRPORT | C31: -36.7411 | D31: 144.3275 | E31: 209.2 m | F31: Supplementary
A32: Blackwood Valley | B32: BRIDGETOWN | C32: -33.9486 | D32: 116.1311 | E32: 178.7 m | F32: Supplementary
A33: Canberra | B33: CANBERRA AIRPORT COMPARISON | C33: -35.3049 | D33: 149.2014 | E33: 578.4 m | F33: Supplementary
A34: Clare | B34: CLARE HIGH SCHOOL | C34: -33.8226 | D34: 138.5933 | E34: 395.0 m | F34: Supplementary
A35: Coonawarra | B35: COONAWARRA | C35: -37.2906 | D35: 140.8254 | E35: 57.0 m | F35: Supplementary
A36: Cowra | B36: COWRA RESEARCH CENTRE | C36: -33.8087 | D36: 148.7071 | E36: 381.0 m | F36: Supplementary
A37: Currency Creek | B37: Gridded Data | C37: -35.45 | D37: 138.8 | E37: 21.2 m | F37: Full
A38: Eden Valley | B38: Gridded Data | C38: -34.65 | D38: 139.1 | E38: 394.5 m | F38: Supplementary
A39: Frankland River | B39: FRANKLAND VINEYARDS | C39: -34.4417 | D39: 116.9944 | E39: 230.0 m | F39: Supplementary
A40: Geelong | B40: AVALON AIRPORT | C40: -38.0288 | D40: 144.4783 | E40: 10.6 m | F40: Supplementary
A41: Geographe | B41: DONNYBROOK | C41: -33.5719 | D41: 115.8247 | E41: 63.0 m | F41: Supplementary
A42: Gippsland - Bairnsdale | B42: BAIRNSDALE AIRPORT | C42: -37.8818 | D42: 147.5669 | E42: 49.4 m | F42: Supplementary
A43: Gippsland - Warragul | B43: WARRAGUL | C43: -38.1731 | D43: 145.9487 | E43: 143.0 m | F43: Supplementary
A44: Glenrowan | B44: Gridded Data | C44: -36.4 | D44: 146.2 | E44: 291.7 m | F44: Supplementary
A45: Goulburn Valley | B45: TATURA INST SUSTAINABLE AG | C45: -36.4378 | D45: 145.2672 | E45: 114.0 m | F45: Supplementary
A46: Grampians | B46: ARARAT PRISON | C46: -37.2769 | D46: 142.9786 | E46: 295.0 m | F46: Supplementary
A47: Granite Belt | B47: STANTHORPE LESLIE PARADE | C47: -28.6617 | D47: 151.9339 | E47: 784.2 m | F47: Supplementary
A48: Gundagai | B48: COOTAMUNDRA AIRPORT | C48: -34.6299 | D48: 148.0365 | E48: 335.0 m | F48: Supplementary
A49: Hastings River | B49: KEMPSEY AIRPORT AWS | C49: -31.0711 | D49: 152.7717 | E49: 13.0 m | F49: Supplementary
A50: Heathcote | B50: HEATHCOTE | C50: -36.9589 | D50: 144.701 | E50: 311.0 m | F50: Supplementary
A51: Henty | B51: HEYWOOD FORESTRY | C51: -38.1355 | D51: 141.6316 | E51: 26.8 m | F51: Supplementary
A52: Hilltops | B52: YOUNG AIRPORT | C52: -34.2493 | D52: 148.2475 | E52: 379.6 m | F52: Supplementary
A53: Hunter | B53: CESSNOCK AIRPORT AWS | C53: -32.7886 | D53: 151.3377 | E53: 61.0 m | F53: Supplementary
A54: Kangaroo Island | B54: KINGSCOTE AERO | C54: -35.7114 | D54: 137.5231 | E54: 6.2 m | F54: Supplementary
A55: King Valley | B55: EDI UPPER | C55: -36.7396 | D55: 146.4671 | E55: 365.0 m | F55: Supplementary
A56: Langhorne Creek | B56: STRATHALBYN RACECOURSE | C56: -35.2836 | D56: 138.8934 | E56: 58.0 m | F56: Full
A57: Macedon Ranges | B57: KYNETON | C57: -37.25 | D57: 144.4378 | E57: 526.0 m | F57: Supplementary
A58: Manjimup | B58: MANJIMUP | C58: -34.2508 | D58: 116.145 | E58: 286.7 m | F58: Supplementary
A59: Margaret River | B59: WITCHCLIFFE | C59: -34.0281 | D59: 115.1042 | E59: 80.0 m | F59: Supplementary
A60: McLaren Vale | B60: Gridded Data | C60: -35.2 | D60: 138.55 | E60: 90.0 m | F60: Supplementary
A61: Mornington Peninsula | B61: MORNINGTON | C61: -38.2358 | D61: 145.0667 | E61: 60.0 m | F61: Supplementary
A62: Mount Barker | B62: MOUNT BARKER | C62: -34.625 | D62: 117.6361 | E62: 300.0 m | F62: Supplementary
A63: Mount Benson | B63: CAPE JAFFA (THE LIMESTONE) | C63: -36.9655 | D63: 139.7164 | E63: 17.0 m | F63: Supplementary
A64: Mount Gambier | B64: MOUNT GAMBIER AERO | C64: -37.7473 | D64: 140.7739 | E64: 63.0 m | F64: Supplementary
A65: Mudgee | B65: MUDGEE AIRPORT AWS | C65: -32.5628 | D65: 149.6149 | E65: 471.0 m | F65: Supplementary
A66: Murray Darling | B66: MILDURA AIRPORT | C66: -34.2358 | D66: 142.0867 | E66: 50.0 m | F66: Supplementary
A67: New England | B67: INVERELL RESEARCH CENTRE | C67: -29.7752 | D67: 151.082 | E67: 664.0 m | F67: Supplementary
A68: Orange | B68: ORANGE AGRICULTURAL INSTITUTE | C68: -33.3211 | D68: 149.0828 | E68: 922.0 m | F68: Supplementary
A69: Padthaway | B69: PADTHAWAY SOUTH | C69: -36.6539 | D69: 140.5212 | E69: 37.0 m | F69: Supplementary
A70: Peel | B70: HALLS HEAD | C70: -32.5385 | D70: 115.7002 | E70: 366.0 m | F70: Supplementary
A71: Pemberton | B71: PEMBERTON | C71: -34.4478 | D71: 116.0433 | E71: 174.0 m | F71: Supplementary
A72: Perth Hills | B72: BICKLEY | C72: -32.0072 | D72: 116.1369 | E72: 384.0 m | F72: Supplementary
A73: Pyrenees | B73: AVOCA (POST OFFICE) | C73: -37.0887 | D73: 143.4747 | E73: 242.0 m | F73: Supplementary
A74: Riverina | B74: GRIFFITH AIRPORT AWS | C74: -34.2487 | D74: 146.0695 | E74: 134.0 m | F74: Full
A75: Riverland | B75: LOXTON RESEARCH CENTRE | C75: -34.439 | D75: 140.5978 | E75: 30.1 m | F75: Full
A76: Robe | B76: ROBE AIRFIELD | C76: -37.1776 | D76: 139.8054 | E76: 3.0 m | F76: Supplementary
A77: Rutherglen | B77: RUTHERGLEN RESEARCH | C77: -36.1048 | D77: 146.5094 | E77: 175.0 m | F77: Supplementary
A78: Shoalhaven Coast | B78: NOWRA RAN AIR STATION AWS | C78: -34.9469 | D78: 150.5353 | E78: 109.0 m | F78: Supplementary
A79: South Burnett | B79: KINGAROY AIRPORT | C79: -26.5737 | D79: 151.8398 | E79: 433.7 m | F79: Supplementary
A80: Southern Fleurieu | B80: VICTOR HARBOR (ENCOUNTER BAY) | C80: -35.5544 | D80: 138.5997 | E80: 8.0 m | F80: Supplementary
A81: Southern Flinders | B81: GEORGETOWN | C81: -33.359 | D81: 138.393 | E81: 273.0 m | F81: Supplementary
A82: Southern Highlands | B82: MOSS VALE AWS | C82: -34.5253 | D82: 150.4217 | E82: 678.4 m | F82: Supplementary
A83: Strathbogie Ranges | B83: STRATHBOGIE | C83: -36.8472 | D83: 145.7308 | E83: 502.0 m | F83: Supplementary
A84: Sunbury | B84: MELBOURNE AIRPORT | C84: -37.6655 | D84: 144.8321 | E84: 113.4 m | F84: Supplementary
A85: Swan District | B85: PERTH AIRPORT | C85: -31.9275 | D85: 115.9764 | E85: 15.4 m | F85: Full
A86: Swan Hill | B86: SWAN HILL AERODROME | C86: -35.3766 | D86: 143.5416 | E86: 71.0 m | F86: Full
A87: Tasmania - Hobart | B87: HOBART AIRPORT | C87: -42.8339 | D87: 147.5033 | E87: 4.0 m | F87: Supplementary
A88: Tasmania - Launceston | B88: LAUNCESTON (TI TREE BEND) | C88: -41.4194 | D88: 147.1219 | E88: 5.0 m | F88: Supplementary
A89: Tumbarumba | B89: TUMBARUMBA POST OFFICE | C89: -35.778 | D89: 148.0122 | E89: 645.0 m | F89: Supplementary
A90: Upper Goulburn | B90: MANSFIELD (POST OFFICE) | C90: -37.0525 | D90: 146.0872 | E90: 316.0 m | F90: Supplementary
A91: Wrattonbully | B91: Gridded Data | C91: -37.2 | D91: 140.9 | E91: 99.1 m | F91: Supplementary
A92: Yarra Valley | B92: COLDSTREAM | C92: -37.7239 | D92: 145.4092 | E92: 83.0 m | F92: Supplementary
A95: Month
A96: January
A97: February
A98: March
A99: April
A100: May
A101: June
A102: July
A103: August
A104: September
A105: October
A106: November
A107: December
A109: Soil Type | B109: https://www.agric.wa.gov.au/citrus/calculating-readily-available-water?page=0%2C1
A110: Sand | B110: 35
A111: Loamy sand | B111: 55
A112: Sandy loam | B112: 65
A113: Loam | B113: 85
A114: Sandy clay loam | B114: 70
A115: Clay loam | B115: 65
A116: Light clay | B116: 55
A118: Season
A119: 2019-20
A120: 2020-21
A121: 2021-22
A122: 2022-23
A123: 2023-24
A124: 2024-25
A125: 2025-26
A126: 2026-27
A127: 2027-28
A128: 2028-29
A129: 2029-30
A130: 2030-31
A131: 2031-32
A132: 2032-33
A133: 2033-34
A134: 2034-35
A135: 2035-36
A136: 2036-37
A137: 2037-38
A138: 2038-39
A139: 2039-40
A141: F/Y
A142: Jul
A143: Aug
A144: Sep
A145: Oct
A146: Nov
A147: Dec
A148: Jan
A149: Feb
A150: Mar
A151: Apr
A152: May
A153: Jun
A155: Full / Supplementary
A156: Full
A157: Supplementary

Sheet Crop Co-efficient (hidden)
A1: MONTH | B1: JUL | C1: AUG | D1: SEP | E1: OCT | F1: NOV | G1: DEC | H1: JAN | I1: FEB | J1: MAR | K1: APR | L1: MAY | M1: JUN
A2: WINEGRAPE (full) | B2: 0.05 | C2: 0.1 | D2: 0.3 | E2: 0.4 | F2: 0.5 | G2: 0.7 | H2: 0.7 | I2: 0.7 | J2: 0.7 | K2: 0.45 | L2: 0.24 | M2: 0.05
A3: WINEGRAPE (supplementary) | B3: 0.05 | C3: 0.05 | D3: 0.05 | E3: 0.28 | F3: 0.35 | G3: 0.42 | H3: 0.42 | I3: 0.43 | J3: 0.43 | K3: 0.15 | L3: 0.24 | M3: 0.05

Sheet Monthly rain (hidden)
A1: Geographical Indication: | B1: Jul | C1: Aug | D1: Sep | E1: Oct | F1: Nov | G1: Dec | H1: Jan | I1: Feb | J1: Mar | K1: Apr | L1: May | M1: Jun
A2: Adelaide Hills - Lenswood | B2: 163.2741935 | C2: 145.9612903 | D2: 115.016129 | E2: 71.72903226 | F2: 46.50322581 | G2: 44.44516129 | H2: 28.453125 | I2: 26.83932961 | J2: 33.68387097 | K2: 58.02903226 | L2: 106.5483871 | M2: 146.916129
A3: Adelaide Hills - Stirling | B3: 151.016129 | C3: 135.2612903 | D3: 112.4935484 | E3: 72.97096774 | F3: 53.59677419 | G3: 48.21290323 | H3: 33.675 | I3: 30.94015573 | J3: 42.6516129 | K3: 65.26774194 | L3: 114.9645161 | M3: 147.8032258
A4: Adelaide Plains | B4: 52.03225806 | C4: 49.23225806 | D4: 46.83225806 | E4: 31.7516129 | F4: 24.91935484 | G4: 27.32580645 | H4: 20.3 | I4: 19.11821229 | J4: 20.96774194 | K4: 26.20322581 | L4: 42.22580645 | M4: 55.70322581
A5: Albany | B5: 114.6967742 | C5: 111.4193548 | D5: 93.16451613 | E5: 64.49032258 | F5: 43.99032258 | G5: 32.26129032 | H5: 24.559375 | I5: 22.19977654 | J5: 39.0516129 | K5: 59.50645161 | L5: 72.85806452 | M5: 104.9064516
A6: Alpine Valleys | B6: 108.0612903 | C6: 107.1225806 | D6: 82.72258065 | E6: 77.00967742 | F6: 68.93225806 | G6: 70.12258065 | H6: 55.515625 | I6: 56.04379888 | J6: 55.2 | K6: 54.03225806 | L6: 80.18709677 | M6: 97.86451613
A7: Barossa Valley | B7: 62.7516129 | C7: 61.47096774 | D7: 58.78064516 | E7: 36.26774194 | F7: 32.28064516 | G7: 32.26774194 | H7: 17.675 | I7: 21.62100559 | J7: 23.97096774 | K7: 30.50645161 | L7: 43.81612903 | M7: 59.68064516
A8: Beechworth | B8: 121.8483871 | C8: 115.5516129 | D8: 93.06774194 | E8: 80.14516129 | F8: 80.50322581 | G8: 77.68387097 | H8: 59.8375 | I8: 58.00223464 | J8: 56.74516129 | K8: 59.52903226 | L8: 88.1 | M8: 109.6709677
A9: Bendigo | B9: 56.00645161 | C9: 53.98387097 | D9: 50.38709677 | E9: 39.38387097 | F9: 43.90322581 | G9: 38.4483871 | H9: 33.134375 | I9: 29.37027933 | J9: 28.83870968 | K9: 33.09677419 | L9: 45.06129032 | M9: 55.35806452
A10: Blackwood Valley | B10: 138.3290323 | C10: 118.4870968 | D10: 88.76129032 | E10: 45.2 | F10: 31.16129032 | G10: 20.38387097 | H10: 15.346875 | I10: 14.1126257 | J10: 22.95483871 | K10: 45.70967742 | L10: 99.48709677 | M10: 110.916129
A11: Canberra | B11: 40.20645161 | C11: 41.70322581 | D11: 52.67741935 | E11: 46.05806452 | F11: 67.38064516 | G11: 61.1516129 | H11: 56.15 | I11: 57.51106145 | J11: 50.61290323 | K11: 36.80967742 | L11: 31.63870968 | M11: 48.16451613
A12: Clare | B12: 71.47419355 | C12: 69.86129032 | D12: 63.77096774 | E12: 45.38387097 | F12: 37.77096774 | G12: 38.40322581 | H12: 24.125 | I12: 24.09251397 | J12: 25.21290323 | K12: 35.62903226 | L12: 52.92903226 | M12: 74.69032258
A13: Coonawarra | B13: 80.85806452 | C13: 83.01612903 | D13: 63.70967742 | E13: 42.42580645 | F13: 36.60322581 | G13: 32.64516129 | H13: 27.890625 | I13: 17.9575419 | J13: 26.53548387 | K13: 37.02258065 | L13: 54.02258065 | M13: 72.96451613
A14: Cowra | B14: 53.30645161 | C14: 47.10967742 | D14: 50.93870968 | E14: 49.96129032 | F14: 55.77096774 | G14: 64.97741935 | H14: 47.434375 | I14: 59.20357542 | J14: 50.05806452 | K14: 38.68709677 | L14: 40.18387097 | M14: 52.33548387
A15: Currency Creek | B15: 65.90645161 | C15: 59.62258065 | D15: 51.39354839 | E15: 35.20322581 | F15: 27.52580645 | G15: 28.62580645 | H15: 16.775 | I15: 18.20778643 | J15: 18.13870968 | K15: 30.60322581 | L15: 51.13870968 | M15: 69.04193548
A16: Eden Valley | B16: 62.53225806 | C16: 61.10322581 | D16: 50.45806452 | E16: 30.98064516 | F16: 27.0483871 | G16: 30.12258065 | H16: 18.01875 | I16: 20.15374302 | J16: 19.08709677 | K16: 25.58709677 | L16: 37.48387097 | M16: 58.27419355
A17: Frankland River | B17: 93.78709677 | C17: 88.18709677 | D17: 70.10645161 | E17: 44.40322581 | F17: 34.46774194 | G17: 24.19354839 | H17: 18.725 | I17: 12.8049162 | J17: 24.9 | K17: 38.39354839 | L17: 66.87419355 | M17: 76.15806452
A18: Geelong | B18: 37.63548387 | C18: 40.07741935 | D18: 45.13225806 | E18: 47.18387097 | F18: 49.83870968 | G18: 36.34193548 | H18: 39.121875 | I18: 36.59396648 | J18: 27.66774194 | K18: 42.67419355 | L18: 33.10645161 | M18: 44.89032258
A19: Geographe | B19: 178.1774194 | C19: 150.5548387 | D19: 102.8806452 | E19: 47.62258065 | F19: 32.59032258 | G19: 18.32258065 | H19: 13.965625 | I19: 13.46189944 | J19: 22.80967742 | K19: 44.88709677 | L19: 120.2967742 | M19: 145.6806452
A20: Gippsland - Bairnsdale | B20: 45.48064516 | C20: 36.70645161 | D20: 50.50322581 | E20: 60.53548387 | F20: 70.19032258 | G20: 59.64193548 | H20: 50.46875 | I20: 52.29365962 | J20: 47.78064516 | K20: 55.29032258 | L20: 38.15806452 | M20: 71.40322581
A21: Gippsland - Warragul | B21: 86.23548387 | C21: 96.37096774 | D21: 101.5645161 | E21: 90.43548387 | F21: 80.91290323 | G21: 71.17419355 | H21: 57.996875 | I21: 55.00645161 | J21: 55.10645161 | K21: 72.43225806 | L21: 78.20322581 | M21: 81.06129032
A22: Glenrowan | B22: 69.1516129 | C22: 62.87419355 | D22: 54.10322581 | E22: 48.37741935 | F22: 50.21612903 | G22: 44.48064516 | H22: 41.303125 | I22: 41.98754171 | J22: 39.59354839 | K22: 38.48709677 | L22: 53.76451613 | M22: 61.31935484
A23: Goulburn Valley | B23: 44.93548387 | C23: 43.75483871 | D23: 39.43548387 | E23: 38.02903226 | F23: 41.19354839 | G23: 36.50645161 | H23: 35.91875 | I23: 33.82837989 | J23: 28.27096774 | K23: 29.07741935 | L23: 36.97419355 | M23: 45.4516129
A24: Grampians | B24: 60.46451613 | C24: 67.73870968 | D24: 56.71290323 | E24: 45.32903226 | F24: 44.52258065 | G24: 38.98387097 | H24: 36.171875 | I24: 32.39240223 | J24: 24.17741935 | K24: 36.87419355 | L24: 48.27419355 | M24: 61.5483871
A25: Granite Belt | B25: 36.36129032 | C25: 31.97096774 | D25: 34.35483871 | E25: 74.37741935 | F25: 83.18064516 | G25: 103.7645161 | H25: 90.784375 | I25: 81.99776536 | J25: 67.27096774 | K25: 33.96129032 | L25: 44.59354839 | M25: 37.36129032
A26: Gundagai | B26: 62.67419355 | C26: 54.32903226 | D26: 51.4483871 | E26: 49.88709677 | F26: 55.86129032 | G26: 53.89032258 | H26: 47.771875 | I26: 51.4449162 | J26: 50.64193548 | K26: 38.18387097 | L26: 41.81935484 | M26: 59.49677419
A27: Hastings River | B27: 39.08064516 | C27: 46.59677419 | D27: 42.23870968 | E27: 63.28064516 | F27: 115.883871 | G27: 113.8193548 | H27: 123.2125 | I27: 153.7153073 | J27: 157.2870968 | K27: 86.69032258 | L27: 79.41612903 | M27: 110.3322581
A28: Heathcote | B28: 59.17741935 | C28: 54.9 | D28: 51.89032258 | E28: 44.0516129 | F28: 51.96451613 | G28: 36.40322581 | H28: 36.340625 | I28: 35.42391061 | J28: 28.25806452 | K28: 36.2516129 | L28: 45.31935484 | M28: 58.52903226
A29: Henty | B29: 96.7516129 | C29: 103.6129032 | D29: 82.25806452 | E29: 57.45483871 | F29: 49.99032258 | G29: 44.30645161 | H29: 31.759375 | I29: 29.6320356 | J29: 33 | K29: 50.52580645 | L29: 67.01612903 | M29: 91.97096774
A30: Hilltops | B30: 61.88387097 | C30: 53.15806452 | D30: 51.13225806 | E30: 45.88709677 | F30: 59.38387097 | G30: 58.69354839 | H30: 42.140625 | I30: 51.48558659 | J30: 46.70322581 | K30: 38.69032258 | L30: 40.60967742 | M30: 60.80967742
A31: Hunter | B31: 32.37096774 | C31: 31.77741935 | D31: 43.53225806 | E31: 49.10967742 | F31: 70.08064516 | G31: 74.22903226 | H31: 75.078125 | I31: 107.6201117 | J31: 78.47741935 | K31: 63.92580645 | L31: 44.53225806 | M31: 63.79677419
A32: Kangaroo Island | B32: 70.83870968 | C32: 62.33225806 | D32: 48.2483871 | E32: 30.38387097 | F32: 21.59032258 | G32: 21.24193548 | H32: 14.715625 | I32: 17.42291435 | J32: 23.62580645 | K32: 26.02258065 | L32: 51.26774194 | M32: 70.17741935
A33: King Valley | B33: 128.4516129 | C33: 120.3612903 | D33: 96.18709677 | E33: 77.52903226 | F33: 81.37096774 | G33: 71.3 | H33: 61.525 | I33: 58.09922136 | J33: 61.59677419 | K33: 57.63870968 | L33: 89.56451613 | M33: 109.6483871
A34: Langhorne Creek | B34: 62.09354839 | C34: 57.10645161 | D34: 50.4516129 | E34: 34.05483871 | F34: 27.71612903 | G34: 28.8516129 | H34: 17.053125 | I34: 19.6375419 | J34: 17.37096774 | K34: 29.97096774 | L34: 44.3 | M34: 58.89354839
A35: Macedon Ranges | B35: 83.65483871 | C35: 80.75483871 | D35: 74.18064516 | E35: 58.02258065 | F35: 57.51935484 | G35: 47.03225806 | H35: 46.5875 | I35: 39.89143493 | J35: 34.77096774 | K35: 43.83548387 | L35: 61.93225806 | M35: 87.56129032
A36: Manjimup | B36: 160.7322581 | C36: 138.7774194 | D36: 107.5451613 | E36: 61.57419355 | F36: 42.22258065 | G36: 27.67741935 | H36: 20.73125 | I36: 15.2701676 | J36: 27.29032258 | K36: 50.36451613 | L36: 107.3612903 | M36: 119.2322581
A37: Margaret River | B37: 209.0193548 | C37: 167.3483871 | D37: 118.4290323 | E37: 66.2483871 | F37: 38.66129032 | G37: 19.54516129 | H37: 12.475 | I37: 13.0301676 | J37: 29.82580645 | K37: 61.15806452 | L37: 139.8709677 | M37: 189.3064516
A38: McLaren Vale | B38: 80.28709677 | C38: 65.01612903 | D38: 55.18064516 | E38: 36.85806452 | F38: 26.87741935 | G38: 25.41935484 | H38: 19.25 | I38: 17.47888268 | J38: 22.42903226 | K38: 35.79354839 | L38: 61.25483871 | M38: 76.22580645
A39: Mornington Peninsula | B39: 70.67419355 | C39: 74.52903226 | D39: 72.94193548 | E39: 64.10645161 | F39: 64.6 | G39: 53.62903226 | H39: 44.184375 | I39: 44.98145251 | J39: 39.64516129 | K39: 61.78709677 | L39: 66.86774194 | M39: 75.05806452
A40: Mount Barker | B40: 89.30967742 | C40: 83.57419355 | D40: 73.41290323 | E40: 55.2516129 | F40: 39.72903226 | G40: 30.6516129 | H40: 24.121875 | I40: 23.98927374 | J40: 40.14193548 | K40: 50.0516129 | L40: 65.08709677 | M40: 74.97419355
A41: Mount Benson | B41: 90.39677419 | C41: 79.95483871 | D41: 51.93870968 | E41: 35.04516129 | F41: 26.63548387 | G41: 25.23225806 | H41: 17.403125 | I41: 16.57575083 | J41: 20.6 | K41: 32.98064516 | L41: 55.54516129 | M41: 76.94193548
A42: Mount Gambier | B42: 100.9903226 | C42: 103.9 | D42: 75.89677419 | E42: 54.8516129 | F42: 44.34516129 | G42: 39.09032258 | H42: 30.6 | I42: 24.90411568 | J42: 34.92903226 | K42: 48.51935484 | L42: 71.40645161 | M42: 92.53225806
A43: Mudgee | B43: 48.70322581 | C43: 37.20322581 | D43: 53.38387097 | E43: 52.45806452 | F43: 70.41612903 | G43: 76.83870968 | H43: 64.090625 | I43: 65.97675978 | J43: 58.40967742 | K43: 40.14193548 | L43: 40.56774194 | M43: 44.72258065
A44: Murray Darling | B44: 22.57741935 | C44: 21.10967742 | D44: 25.29032258 | E44: 22.20322581 | F44: 27.69677419 | G44: 31.55483871 | H44: 24.25 | I44: 22.03083799 | J44: 17.09677419 | K44: 17.69032258 | L44: 22.09354839 | M44: 21.38709677
A45: New England | B45: 44.4 | C45: 36.79354839 | D45: 47.8516129 | E45: 66.35806452 | F45: 96.36774194 | G45: 106.3354839 | H45: 99.828125 | I45: 91.30815642 | J45: 75.48387097 | K45: 38.92258065 | L45: 37.34516129 | M45: 51.07419355
A46: Orange | B46: 87.5483871 | C46: 91.66774194 | D46: 74.53548387 | E46: 68.93870968 | F46: 75.78064516 | G46: 83.76129032 | H46: 76.13125 | I46: 75.04 | J46: 66.25806452 | K46: 52.79677419 | L46: 61.79677419 | M46: 82.8516129
A47: Padthaway | B47: 67.3483871 | C47: 69.78064516 | D47: 52.49354839 | E47: 37.40645161 | F47: 30.84516129 | G47: 30.03870968 | H47: 24.021875 | I47: 16.92826816 | J47: 20.5516129 | K47: 28.22580645 | L47: 42.70645161 | M47: 61.40967742
A48: Peel | B48: 147.3870968 | C48: 114.0387097 | D48: 78.11290323 | E48: 39.62580645 | F48: 24.7483871 | G48: 13.72258065 | H48: 15.159375 | I48: 15.0824581 | J48: 20.84193548 | K48: 38.91290323 | L48: 99.98064516 | M48: 142.2193548
A49: Pemberton | B49: 202.0774194 | C49: 177.7741935 | D49: 144.9193548 | E49: 81.67419355 | F49: 57.10645161 | G49: 36.67096774 | H49: 26.121875 | I49: 19.12658509 | J49: 32.98387097 | K49: 63.82580645 | L49: 137.116129 | M49: 166.8
A50: Perth Hills | B50: 216.5064516 | C50: 183.8225806 | D50: 129.9129032 | E50: 64.29032258 | F50: 38.22258065 | G50: 15.50322581 | H50: 25.840625 | I50: 18.30745273 | J50: 24.86129032 | K50: 49.8483871 | L50: 118.416129 | M50: 179.1580645
A51: Pyrenees | B51: 56.62258065 | C51: 56.33225806 | D51: 53.0516129 | E51: 40.2516129 | F51: 41.21935484 | G51: 40.79354839 | H51: 42.415625 | I51: 26.99888268 | J51: 20.65483871 | K51: 30.68709677 | L51: 44.00322581 | M51: 59.56129032
A52: Riverina | B52: 34.3483871 | C52: 31.13225806 | D52: 34.69677419 | E52: 36.75483871 | F52: 38.16451613 | G52: 34.32258065 | H52: 28.346875 | I52: 33.41541899 | J52: 34.81935484 | K52: 23.2516129 | L52: 31.30967742 | M52: 37.82258065
A53: Riverland | B53: 24.1483871 | C53: 23.66129032 | D53: 28.41612903 | E53: 21.71290323 | F53: 23.53870968 | G53: 23.88709677 | H53: 19.340625 | I53: 19.47173184 | J53: 12.17741935 | K53: 17.96451613 | L53: 21.71612903 | M53: 24.16451613
A54: Robe | B54: 101.8967742 | C54: 95.68387097 | D54: 61 | E54: 39.30322581 | F54: 31.70645161 | G54: 29.08064516 | H54: 18.315625 | I54: 18.6407119 | J54: 27.26451613 | K54: 38.48064516 | L54: 65.03870968 | M54: 95.40322581
A55: Rutherglen | B55: 59.73225806 | C55: 55.72258065 | D55: 53.88387097 | E55: 49.66129032 | F55: 52.42903226 | G55: 44.99354839 | H55: 37.65 | I55: 42.13139665 | J55: 36.17741935 | K55: 32.76774194 | L55: 46.01935484 | M55: 53.58709677
A56: Shoalhaven Coast | B56: 57.12580645 | C56: 72.46451613 | D56: 59.83548387 | E56: 61.67096774 | F56: 80.16129032 | G56: 76.1483871 | H56: 80.48125 | I56: 129.187933 | J56: 97.18709677 | K56: 72.91612903 | L56: 64.87419355 | M56: 122.5387097
A57: South Burnett | B57: 29.52903226 | C57: 25.9516129 | D57: 32.70967742 | E57: 62 | F57: 68.53225806 | G57: 100.1225806 | H57: 100.753125 | I57: 94.49296089 | J57: 67.67096774 | K57: 32.21290323 | L57: 43.36129032 | M57: 39.45483871
A58: Southern Fleurieu | B58: 89.27096774 | C58: 78.66451613 | D58: 64.49354839 | E58: 41.03870968 | F58: 30.25483871 | G58: 30.28709677 | H58: 19.859375 | I58: 22.24044693 | J58: 22.17419355 | K58: 38.90322581 | L58: 60.81290323 | M58: 85.08064516
A59: Southern Flinders | B59: 58.89032258 | C59: 53.56774194 | D59: 52.6483871 | E59: 39.62903226 | F59: 34.47096774 | G59: 32.88387097 | H59: 23.859375 | I59: 19.66569832 | J59: 24.90322581 | K59: 30.66129032 | L59: 44.78387097 | M59: 61.34193548
A60: Southern Highlands | B60: 47.04193548 | C60: 64.40645161 | D60: 50.75806452 | E60: 49.50645161 | F60: 69.6 | G60: 61.85483871 | H60: 66.775 | I60: 104.6949721 | J60: 78.76451613 | K60: 62.98387097 | L60: 55.53870968 | M60: 89.78387097
A61: Strathbogie Ranges | B61: 112.7096774 | C61: 110.116129 | D61: 86.13548387 | E61: 70.96129032 | F61: 67.84516129 | G61: 63.37741935 | H61: 52.528125 | I61: 50.16223464 | J61: 48.59354839 | K61: 54.64516129 | L61: 77.82258065 | M61: 103.5225806
A62: Sunbury | B62: 34.42258065 | C62: 39.01935484 | D62: 45.90967742 | E62: 49.27741935 | F62: 58.32258065 | G62: 51.53548387 | H62: 38.64375 | I62: 42.77899441 | J62: 37.15483871 | K62: 41.56774194 | L62: 33.34193548 | M62: 43.39354839
A63: Swan District | B63: 142.2451613 | C63: 120.4129032 | D63: 77.7483871 | E63: 36.27096774 | F63: 25.84516129 | G63: 9.606451613 | H63: 17.21875 | I63: 16.54972067 | J63: 18.36774194 | K63: 32.85806452 | L63: 80.94193548 | M63: 121.1483871
A64: Swan Hill | B64: 30.32903226 | C64: 27.99032258 | D64: 29.99354839 | E64: 25.87419355 | F64: 34.91612903 | G64: 23.89354839 | H64: 24.571875 | I64: 19.94100559 | J64: 17.52903226 | K64: 21.07419355 | L64: 28.62258065 | M64: 27.61935484
A65: Tasmania - Hobart | B65: 37.04516129 | C65: 44.9483871 | D65: 39.48387097 | E65: 40.69677419 | F65: 41.67096774 | G65: 45 | H65: 40.715625 | I65: 34.66518354 | J65: 33.0516129 | K65: 33.71612903 | L65: 30.28709677 | M65: 36.63225806
A66: Tasmania - Launceston | B66: 80.54516129 | C66: 83.7516129 | D66: 65.2 | E66: 48.35806452 | F66: 52.89354839 | G66: 45.07096774 | H66: 48.54375 | I66: 35.46562848 | J66: 36.01290323 | K66: 49.06129032 | L66: 62.15483871 | M66: 68.73870968
A67: Tumbarumba | B67: 101.4580645 | C67: 109.483871 | D67: 90.61935484 | E67: 76.76774194 | F67: 92.65806452 | G67: 76.90967742 | H67: 64.315625 | I67: 59.69162011 | J67: 60.70645161 | K67: 58.42903226 | L67: 70.8516129 | M67: 93.16774194
A68: Upper Goulburn | B68: 67.60322581 | C68: 72.80645161 | D68: 67.27096774 | E68: 58.33548387 | F68: 60.46129032 | G68: 57.21290323 | H68: 54.53125 | I68: 43.367297 | J68: 44.47096774 | K68: 42.68064516 | L68: 53.97096774 | M68: 63.8516129
A69: Wrattonbully | B69: 82.3483871 | C69: 85.5516129 | D69: 65.99354839 | E69: 42.92903226 | F69: 37.10967742 | G69: 36.41290323 | H69: 29.603125 | I69: 19.69698324 | J69: 26.03548387 | K69: 36.59677419 | L69: 52.79354839 | M69: 73.05483871
A70: Yarra Valley | B70: 63.91612903 | C70: 75.05806452 | D70: 79.10645161 | E70: 73.07419355 | F70: 74.22258065 | G70: 68.16129032 | H70: 49.540625 | I70: 54.51083799 | J70: 49.62258065 | K70: 59.44193548 | L70: 65.28387097 | M70: 69.80645161

Sheet Monthly Et Short crop (hidden)
A1: Geographical Indication: | B1: Jul | C1: Aug | D1: Sep | E1: Oct | F1: Nov | G1: Dec | H1: Jan | I1: Feb | J1: Mar | K1: Apr | L1: May | M1: Jun
A2: Adelaide Hills - Lenswood | B2: 34.36451613 | C2: 50.04193548 | D2: 75.22580645 | E2: 112.1483871 | F2: 137.9354839 | G2: 160.8096774 | H2: 173.49375 | I2: 141.5892737 | J2: 120.3935484 | K2: 77.75806452 | L2: 47.07741935 | M2: 30.95483871
A3: Adelaide Hills - Stirling | B3: 29.31935484 | C3: 44.11612903 | D3: 67.33870968 | E3: 101.7870968 | F3: 124.6870968 | G3: 145.8548387 | H3: 157.74375 | I3: 129.0335929 | J3: 108.8096774 | K3: 69.90322581 | L3: 41.15806452 | M3: 26.30645161
A4: Adelaide Plains | B4: 39.83225806 | C4: 55.72258065 | D4: 83.23225806 | E4: 128.4870968 | F4: 158.3870968 | G4: 181.4322581 | H4: 195.034375 | I4: 160.7856983 | J4: 137.6064516 | K4: 92.73225806 | L4: 57.27419355 | M4: 36.86129032
A5: Albany | B5: 40.85483871 | C5: 53.29354839 | D5: 71.41935484 | E5: 96.25483871 | F5: 117.5580645 | G5: 139.6806452 | H5: 143.878125 | I5: 118.4102793 | J5: 104.2516129 | K5: 71.93225806 | L5: 50.12580645 | M5: 37.62580645
A6: Alpine Valleys | B6: 31.17419355 | C6: 46.13548387 | D6: 69.93225806 | E6: 109.6709677 | F6: 139.116129 | G6: 172.2193548 | H6: 184.834375 | I6: 147.667933 | J6: 125.9903226 | K6: 75.80322581 | L6: 44.04193548 | M6: 29.51935484
A7: Barossa Valley | B7: 36.74193548 | C7: 51.68387097 | D7: 78.50967742 | E7: 121.9451613 | F7: 150.5741935 | G7: 175.7967742 | H7: 189.090625 | I7: 155.1544134 | J7: 130.8774194 | K7: 84.7 | L7: 51.11612903 | M7: 33.22903226
A8: Beechworth | B8: 26.53548387 | C8: 40.70967742 | D8: 64.00322581 | E8: 103.8290323 | F8: 133.2483871 | G8: 166.316129 | H8: 179.0375 | I8: 142.3275978 | J8: 120.1451613 | K8: 70.67419355 | L8: 39.88387097 | M8: 25.98709677
A9: Bendigo | B9: 30.38387097 | C9: 46.45483871 | D9: 72.17096774 | E9: 115.7483871 | F9: 145.9806452 | G9: 177.216129 | H9: 187.96875 | I9: 152.4169832 | J9: 128.5580645 | K9: 78.37741935 | L9: 44.25483871 | M9: 28.46774194
A10: Blackwood Valley | B10: 36.74516129 | C10: 48.36129032 | D10: 65.86774194 | E10: 99.22580645 | F10: 135.0516129 | G10: 169.6903226 | H10: 180.009375 | I10: 148.1278212 | J10: 125.3709677 | K10: 77.28064516 | L10: 48.99354839 | M10: 35.32258065
A11: Canberra | B11: 36.92903226 | C11: 54.67419355 | D11: 79.57741935 | E11: 115.283871 | F11: 138.016129 | G11: 167.0225806 | H11: 172.578125 | I11: 134.1935196 | J11: 116.1290323 | K11: 76.00322581 | L11: 49.57419355 | M11: 33.30322581
A12: Clare | B12: 35.70645161 | C12: 51.40645161 | D12: 78.0516129 | E12: 121.2677419 | F12: 151.0419355 | G12: 178.2903226 | H12: 192.171875 | I12: 157.9794413 | J12: 134.6580645 | K12: 86.69677419 | L12: 50.9483871 | M12: 32.2483871
A13: Coonawarra | B13: 32.15806452 | C13: 45.37096774 | D13: 65.33870968 | E13: 100.4677419 | F13: 123.3129032 | G13: 150.7258065 | H13: 163.60625 | I13: 133.3269274 | J13: 110.6903226 | K13: 68.39032258 | L13: 41.08387097 | M13: 28.47419355
A14: Cowra | B14: 38.68709677 | C14: 56.1483871 | D14: 83.75806452 | E14: 125.116129 | F14: 154.2064516 | G14: 186.4354839 | H14: 195.253125 | I14: 154.0312849 | J14: 134.083871 | K14: 88.4 | L14: 55.12903226 | M14: 35.69032258
A15: Currency Creek | B15: 40.28064516 | C15: 56.41935484 | D15: 79.3 | E15: 114.3064516 | F15: 134.083871 | G15: 151.6709677 | H15: 158.44375 | I15: 127.9279199 | J15: 112.4741935 | K15: 77.20645161 | L15: 51.12580645 | M15: 36.58064516
A16: Eden Valley | B16: 37.54516129 | C16: 53.47096774 | D16: 79.66129032 | E16: 121.7419355 | F16: 150.3451613 | G16: 175.6483871 | H16: 188.0125 | I16: 153.796648 | J16: 130.7096774 | K16: 84.83548387 | L16: 51.49354839 | M16: 34.05806452
A17: Frankland River | B17: 36.83225806 | C17: 49.02258065 | D17: 67.3483871 | E17: 98.21290323 | F17: 128.9709677 | G17: 157.7451613 | H17: 164.2125 | I17: 134.4375419 | J17: 114.4806452 | K17: 74.42258065 | L17: 48.84193548 | M17: 35.24516129
A18: Geelong | B18: 34.19354839 | C18: 47.81290323 | D18: 68.10322581 | E18: 100.9354839 | F18: 119.5451613 | G18: 142.5258065 | H18: 150.48125 | I18: 121.5731844 | J18: 104.9709677 | K18: 65.52903226 | L18: 42.0483871 | M18: 29.74516129
A19: Geographe | B19: 42.19677419 | C19: 55.01935484 | D19: 72.54193548 | E19: 108.8612903 | F19: 143.1483871 | G19: 175.7451613 | H19: 187.38125 | I19: 154.0375419 | J19: 133.4903226 | K19: 84.07096774 | L19: 56.23548387 | M19: 41.05483871
A20: Gippsland - Bairnsdale | B20: 38.4516129 | C20: 52.41935484 | D20: 71.70645161 | E20: 101.1354839 | F20: 116.8451613 | G20: 138.2064516 | H20: 144.946875 | I20: 113.6600667 | J20: 100.5806452 | K20: 65.31935484 | L20: 45.20645161 | M20: 33.12903226
A21: Gippsland - Warragul | B21: 31.82580645 | C21: 44.90322581 | D21: 63.42580645 | E21: 92.34193548 | F21: 110.3709677 | G21: 132.5580645 | H21: 141.903125 | I21: 115.6129032 | J21: 99.69032258 | K21: 61.18709677 | L21: 39.24516129 | M21: 28.42903226
A22: Glenrowan | B22: 30.77419355 | C22: 45.5483871 | D22: 69.83870968 | E22: 111.9645161 | F22: 145.4548387 | G22: 180.1870968 | H22: 192.009375 | I22: 153.7196885 | J22: 130.683871 | K22: 78.7 | L22: 44.61612903 | M22: 29.56129032
A23: Goulburn Valley | B23: 31.59677419 | C23: 46.79677419 | D23: 71.70645161 | E23: 114.7193548 | F23: 144.5903226 | G23: 174.9193548 | H23: 184.971875 | I23: 148.6377654 | J23: 126.7290323 | K23: 76.63225806 | L23: 43.57419355 | M23: 29.30645161
A24: Grampians | B24: 31.35483871 | C24: 45.61612903 | D24: 66.72903226 | E24: 101.1516129 | F24: 126.2193548 | G24: 155.6806452 | H24: 166.875 | I24: 133.5897207 | J24: 112.383871 | K24: 69.56774194 | L24: 41.56451613 | M24: 28.20967742
A25: Granite Belt | B25: 51.79677419 | C25: 73.40967742 | D25: 102.2645161 | E25: 130.3419355 | F25: 142.0354839 | G25: 155.9870968 | H25: 154.446875 | I25: 123.6286034 | J25: 116.6806452 | K25: 84.4516129 | L25: 60.4483871 | M25: 45.0516129
A26: Gundagai | B26: 35.27741935 | C26: 49.85806452 | D26: 76.6516129 | E26: 116.6709677 | F26: 148.2548387 | G26: 179.9096774 | H26: 192.290625 | I26: 150.5930726 | J26: 130.583871 | K26: 81.22903226 | L26: 50.20967742 | M26: 31.84193548
A27: Hastings River | B27: 60.71290323 | C27: 82.92903226 | D27: 107.6645161 | E27: 129.7774194 | F27: 135.0741935 | G27: 151.4967742 | H27: 150.41875 | I27: 122.0017877 | J27: 113.6612903 | K27: 86.41935484 | L27: 66.25483871 | M27: 52.21290323
A28: Heathocte | B28: 29.81290323 | C28: 44.86129032 | D28: 68.14193548 | E28: 108.3774194 | F28: 137.5935484 | G28: 168.8387097 | H28: 179.559375 | I28: 144.8804469 | J28: 122.7322581 | K28: 74.00967742 | L28: 42.45483871 | M28: 27.64193548
A29: Henty | B29: 32.83225806 | C29: 45.96129032 | D29: 63.60645161 | E29: 92.00967742 | F29: 107.9580645 | G29: 128.5967742 | H29: 137.2375 | I29: 111.9252503 | J29: 96.09677419 | K29: 61.11935484 | L29: 39.7483871 | M29: 28.92580645
A30: Hilltops | B30: 34.04193548 | C30: 49.21935484 | D30: 74.97741935 | E30: 116.6774194 | F30: 147.6580645 | G30: 182.4870968 | H30: 192.509375 | I30: 151.3063687 | J30: 130.5032258 | K30: 82.52580645 | L30: 49.09677419 | M30: 31.61935484
A31: Hunter | B31: 50.7516129 | C31: 72.99677419 | D31: 100.0935484 | E31: 130.4322581 | F31: 142.1806452 | G31: 160.5419355 | H31: 161.546875 | I31: 127.2607821 | J31: 112.6612903 | K31: 80.32580645 | L31: 58.05483871 | M31: 43.23870968
A32: Kangaroo Island | B32: 34.56451613 | C32: 46.83548387 | D32: 66.64516129 | E32: 99.82580645 | F32: 125.1032258 | G32: 145.1612903 | H32: 154.453125 | I32: 123.4553949 | J32: 105.9548387 | K32: 67.31612903 | L32: 43.06451613 | M32: 31.57741935
A33: King Valley | B33: 28.56129032 | C33: 43.09677419 | D33: 65.89677419 | E33: 105.1612903 | F33: 134.3 | G33: 166.3258065 | H33: 178.478125 | I33: 143.8714127 | J33: 123.0193548 | K33: 72.92580645 | L33: 41.38709677 | M33: 27.03225806
A34: Langhorne Creek | B34: 40.82903226 | C34: 56.89354839 | D34: 80.58387097 | E34: 119.0129032 | F34: 143.0483871 | G34: 163.2741935 | H34: 171.653125 | I34: 138.5765363 | J34: 120.8774194 | K34: 82.0516129 | L34: 53.22580645 | M34: 37.20967742
A35: Macedon Ranges | B35: 26.09032258 | C35: 40.04516129 | D35: 61.96129032 | E35: 97.73225806 | F35: 123.0709677 | G35: 151.483871 | H35: 161.978125 | I35: 130.4662959 | J35: 109.4548387 | K35: 65.01612903 | L35: 36.85483871 | M35: 23.80322581
A36: Manjimup | B36: 37.07096774 | C36: 49.9516129 | D36: 69.28387097 | E36: 101.3645161 | F36: 130.6709677 | G36: 159.483871 | H36: 167.603125 | I36: 138.7830168 | J36: 118.1419355 | K36: 75.28064516 | L36: 49.4 | M36: 35.63548387
A37: Margaret River | B37: 40.67741935 | C37: 52.88387097 | D37: 70.52258065 | E37: 99.9516129 | F37: 127.4709677 | G37: 153.7 | H37: 160.58125 | I37: 134.3186592 | J37: 116.5967742 | K37: 74.82580645 | L37: 50.55806452 | M37: 38.87419355
A38: McLaren Vale | B38: 41.26774194 | C38: 57.3 | D38: 82.09677419 | E38: 119.2870968 | F38: 143.0193548 | G38: 162.8032258 | H38: 173.34375 | I38: 141.4203352 | J38: 122.6032258 | K38: 83.36451613 | L38: 54.01612903 | M38: 37.8
A39: Mornington Peninsula | B39: 32.61935484 | C39: 46.39032258 | D39: 65.43225806 | E39: 94.94516129 | F39: 111.9483871 | G39: 132.2741935 | H39: 139.840625 | I39: 114.0022346 | J39: 98.61612903 | K39: 62.3 | L39: 40.20645161 | M39: 28.6483871
A40: Mount Barker | B40: 37.43548387 | C40: 49.93225806 | D40: 68.81290323 | E40: 97.81935484 | F40: 125.2806452 | G40: 150.4354839 | H40: 154.721875 | I40: 126.0156425 | J40: 109.0096774 | K40: 73.83870968 | L40: 49.53225806 | M40: 35.60967742
A41: Mount Benson | B41: 31.97419355 | C41: 45.10645161 | D41: 63.91935484 | E41: 96.42903226 | F41: 120.3193548 | G41: 140.2290323 | H41: 147.70625 | I41: 118.1481646 | J41: 100.5741935 | K41: 64.99032258 | L41: 40.51935484 | M41: 28.74516129
A42: Mount Gambier | B42: 30.68387097 | C42: 44.04193548 | D42: 62.59677419 | E42: 94.33225806 | F42: 115.5580645 | G42: 141.2258065 | H42: 152.875 | I42: 123.9007786 | J42: 102.9354839 | K42: 63.64193548 | L42: 38.27419355 | M42: 26.79677419
A43: Mudgee | B43: 42.1516129 | C43: 60.73548387 | D43: 88.70322581 | E43: 125.8129032 | F43: 147.983871 | G43: 173.2516129 | H43: 179.434375 | I43: 141.2858101 | J43: 124.0258065 | K43: 84.38709677 | L43: 54.85806452 | M43: 37.38709677
A44: Murray Darling | B44: 46.54516129 | C44: 68.23225806 | D44: 99.6483871 | E44: 146.6258065 | F44: 174.1677419 | G44: 204.0870968 | H44: 212.846875 | I44: 173.9910615 | J44: 150.3451613 | K44: 97.97741935 | L44: 60.63548387 | M44: 41.54516129
A45: New England | B45: 54.33548387 | C45: 77.04516129 | D45: 103.4193548 | E45: 137.3935484 | F45: 152.2419355 | G45: 171.4129032 | H45: 175.103125 | I45: 141.5642458 | J45: 133.3548387 | K45: 96.64193548 | L45: 68.83548387 | M45: 49.00322581
A46: Orange | B46: 32.9516129 | C46: 49.06451613 | D46: 74.13225806 | E46: 105.8290323 | F46: 127.4709677 | G46: 154.9419355 | H46: 162.615625 | I46: 127.0918436 | J46: 109.6193548 | K46: 71.30967742 | L46: 43.49354839 | M46: 29.09677419
A47: Padthaway | B47: 33.78387097 | C47: 48.05806452 | D47: 68.99032258 | E47: 106.4064516 | F47: 132.2354839 | G47: 160.183871 | H47: 171.696875 | I47: 140.2064804 | J47: 116.7774194 | K47: 73.19032258 | L47: 44.22580645 | M47: 30.29032258
A48: Peel | B48: 49.50322581 | C48: 63.40645161 | D48: 83.40645161 | E48: 121.1129032 | F48: 153.4290323 | G48: 184.383871 | H48: 192.875 | I48: 161.1673743 | J48: 142.5419355 | K48: 94.4 | L48: 65.51612903 | M48: 48.28064516
A49: Pemberton | B49: 39.35483871 | C49: 51.79354839 | D49: 68.85806452 | E49: 97.90967742 | F49: 124.1096774 | G49: 149.4483871 | H49: 157.096875 | I49: 131.3539488 | J49: 113 | K49: 73.86129032 | L49: 50.43548387 | M49: 37.82903226
A50: Perth Hills | B50: 42.37419355 | C50: 57.22903226 | D50: 78.35806452 | E50: 118.8387097 | F50: 153.0451613 | G50: 186.2967742 | H50: 196.246875 | I50: 161.9047831 | J50: 141.7548387 | K50: 92.11935484 | L50: 59.96129032 | M50: 41.57741935
A51: Pyrenees | B51: 30.99677419 | C51: 45.9516129 | D51: 69.09677419 | E51: 107.7935484 | F51: 134.7548387 | G51: 164.5612903 | H51: 176.6 | I51: 142.2368715 | J51: 119.816129 | K51: 73.15806452 | L51: 42.64516129 | M51: 28.26451613
A52: Riverina | B52: 39.36451613 | C52: 59.2483871 | D52: 92.06451613 | E52: 140.0483871 | F52: 169.7354839 | G52: 202.6032258 | H52: 211.25625 | I52: 168.6945251 | J52: 147.616129 | K52: 95.48064516 | L52: 57.43548387 | M52: 37.13548387
A53: Riverland | B53: 45.08709677 | C53: 65.67096774 | D53: 95.85806452 | E53: 140.7903226 | F53: 165.9516129 | G53: 193.1516129 | H53: 202.734375 | I53: 165.1499441 | J53: 142.5709677 | K53: 93.56451613 | L53: 58.46451613 | M53: 39.80645161
A54: Robe | B54: 32.62258065 | C54: 46.62258065 | D54: 65.42903226 | E54: 94.76774194 | F54: 115.1129032 | G54: 134.1354839 | H54: 141.096875 | I54: 113.9870968 | J54: 96.62258065 | K54: 63.29354839 | L54: 40.65483871 | M54: 28.57419355
A55: Rutherglen | B55: 30.01612903 | C55: 43.91290323 | D55: 66.73225806 | E55: 109.7612903 | F55: 145.4258065 | G55: 182.6741935 | H55: 195.334375 | I55: 155.1669274 | J55: 131.2483871 | K55: 78.23548387 | L55: 43.33225806 | M55: 29.30967742
A56: Shoalhaven Coast | B56: 51.0483871 | C56: 70.8483871 | D56: 94.45483871 | E56: 121.2483871 | F56: 128.3677419 | G56: 145.0129032 | H56: 143.66875 | I56: 112.9979888 | J56: 104.4774194 | K56: 78.30645161 | L56: 58.48064516 | M56: 43.26451613
A57: South Burnett | B57: 63.68709677 | C57: 87.1483871 | D57: 115.8612903 | E57: 143.216129 | F57: 154.0322581 | G57: 164.0967742 | H57: 160.90625 | I57: 129.1222346 | J57: 124.6967742 | K57: 94.38387097 | L57: 70.9 | M57: 55.81290323
A58: Southern Fleurieu | B58: 37.66774194 | C58: 53.15806452 | D58: 74.22580645 | E58: 107.0290323 | F58: 125.5903226 | G58: 141.8322581 | H58: 148.125 | I58: 119.6648045 | J58: 104.8935484 | K58: 70.88064516 | L58: 47.47741935 | M58: 34.56129032
A59: Southern Flinders | B59: 40.70645161 | C59: 57.18064516 | D59: 87.41290323 | E59: 131.4193548 | F59: 159.3064516 | G59: 186.6774194 | H59: 198.4125 | I59: 163.341676 | J59: 140.5258065 | K59: 92.82258065 | L59: 55.97096774 | M59: 36.6
A60: Southern Highlands | B60: 36.77741935 | C60: 54.5 | D60: 79.79677419 | E60: 108.416129 | F60: 120.5225806 | G60: 141.7741935 | H60: 141.14375 | I60: 107.2884916 | J60: 93.85806452 | K60: 64.70322581 | L60: 44.13548387 | M60: 30.81290323
A61: Strathbogie Ranges | B61: 26.59677419 | C61: 40.02258065 | D61: 61.4 | E61: 97.07741935 | F61: 122.9548387 | G61: 152.6741935 | H61: 164.503125 | I61: 132.9984358 | J61: 110.8451613 | K61: 63.91290323 | L61: 36.67419355 | M61: 25.39032258
A62: Sunbury | B62: 36.64193548 | C62: 52.0516129 | D62: 73.7516129 | E62: 107.7419355 | F62: 127.7193548 | G62: 152.483871 | H62: 159.86875 | I62: 130.2203352 | J62: 113.4741935 | K62: 72.22258065 | L62: 46.29354839 | M62: 32.32258065
A63: Swan District | B63: 53.58387097 | C63: 68.76774194 | D63: 90.69032258 | E63: 131.8064516 | F63: 166.4354839 | G63: 199.2064516 | H63: 208.975 | I63: 174.2694972 | J63: 155.316129 | K63: 105.0451613 | L63: 72.44516129 | M63: 52.51612903
A64: Swan Hill | B64: 40.80967742 | C64: 59.43548387 | D64: 88.60322581 | E64: 136.0806452 | F64: 164.9322581 | G64: 196.6548387 | H64: 206.671875 | I64: 167.7465922 | J64: 144.8580645 | K64: 92.43225806 | L64: 55.77419355 | M64: 37.03548387
A65: Tasmania - Hobart | B65: 32.36774194 | C65: 47.50967742 | D65: 69.38709677 | E65: 100.0129032 | F65: 117.016129 | G65: 139.8290323 | H65: 143.953125 | I65: 111.0126808 | J65: 95.12258065 | K65: 61.61935484 | L65: 41.25483871 | M65: 28.7483871
A66: Tasmania - Launceston | B66: 27.18709677 | C66: 39.92580645 | D66: 60 | E66: 93.39677419 | F66: 115.5967742 | G66: 140.083871 | H66: 145.190625 | I66: 114.2767519 | J66: 98.05806452 | K66: 57.53225806 | L66: 35.24193548 | M66: 24.28387097
A67: Tumbarumba | B67: 33.32580645 | C67: 47.8483871 | D67: 71.00322581 | E67: 108.6290323 | F67: 133.5258065 | G67: 164.0548387 | H67: 175.45 | I67: 139.2084916 | J67: 120.5903226 | K67: 72.55483871 | L67: 45.58387097 | M67: 31.45806452
A68: Upper Goulburn | B68: 29.34193548 | C68: 43.76451613 | D68: 66.28387097 | E68: 103.4645161 | F68: 130.5741935 | G68: 159.6870968 | H68: 172.125 | I68: 139.5764182 | J68: 117.9967742 | K68: 70.85483871 | L68: 41.08064516 | M68: 27.46129032
A69: Wrattonbully | B69: 32.11290323 | C69: 45.49677419 | D69: 65.26451613 | E69: 100.5612903 | F69: 125.0580645 | G69: 153.7064516 | H69: 166.771875 | I69: 135.9486034 | J69: 112.7645161 | K69: 69.41290323 | L69: 41.51290323 | M69: 28.58387097
A70: Yarra Valley | B70: 31.46774194 | C70: 44.47419355 | D70: 65.0483871 | E70: 96.31935484 | F70: 117.4290323 | G70: 141.5709677 | H70: 153.209375 | I70: 125.5682682 | J70: 106.6290323 | K70: 63.31935484 | L70: 39.03548387 | M70: 27.81935484

Sheet Main Menu (hidden)
E3: Vineyard Irrigation Budgeting Tool
H4: Current Season: | M4: mm
H5: Water Allocation: | J5: 41.06 | K5: Unallocated: | L5: 53:94 | M5: ML/ha
